bitfinex-derivatives/quotes_BTCF0:USTF0_20251210
["timestamp","ask_amount","ask_price","bid_price","bid_amount"]
[1765380721242,0.4962741,92048.0,92037.0,0.02917845]
[1765380721445,0.22022,92037.0,92035.0,0.02917845]
[1765380721747,0.05495,92040.0,92021.0,0.0388841]
[1765380721748,0.22022,92022.0,92021.0,0.0388841]
[1765380721938,0.2310873,92021.0,92020.0,0.0388841]
[1765380722134,0.22022,92018.0,92017.0,0.0388841]
[1765380722450,0.22022,92016.0,92015.0,0.25675889]
[1765380722644,0.22022,92016.0,92015.0,0.20700679]
[1765380723241,0.22022,92016.0,92015.0,0.24589089]
[1765380723444,0.22022,92016.0,92015.0,0.20700679]
[1765380724747,0.22022,92016.0,92015.0,0.20800679]
[1765380725237,0.22022,92016.0,92015.0,0.20900679]
[1765380725946,0.00016294,92027.0,92015.0,0.20900679]
[1765380725947,0.5584,92048.0,92047.0,0.20592]
[1765380726143,0.5584,92048.0,92040.0,0.0647]
[1765380726144,0.22022,92045.0,92044.0,0.0108644]
[1765380726344,0.22022,92045.0,92040.0,0.0647]
[1765380726345,0.22022,92042.0,92041.0,0.2167848]
[1765380726539,0.70392,92048.0,92047.0,0.2167842]
[1765380726540,0.41782,92048.0,92047.0,0.2167842]
[1765380726739,0.92414,92048.0,92047.0,0.20592]
[1765380727048,1.28494,92048.0,92047.0,0.20592]
[1765380727235,0.22022,92039.0,92038.0,0.00016294]
[1765380728341,1.12654,92039.0,92038.0,4e-08]
[1765380728534,1.12654,92039.0,92015.0,0.00108679]
[1765380728535,0.26816,92016.0,92015.0,0.00108679]
[1765380728746,1.13528,92016.0,92015.0,0.00108679]
[1765380729942,1.13528,92016.0,92015.0,0.20715679]
[1765380729943,1.08198,92016.0,92015.0,0.20715679]
[1765380730340,1.08198,92016.0,92015.0,0.00108679]
[1765380731334,1.08098,92016.0,92015.0,0.00108679]
[1765380731543,1.08298,92016.0,92015.0,0.00108679]
[1765380734043,1.08198,92016.0,92015.0,0.00108679]
[1765380734245,1.08298,92016.0,92015.0,0.00108679]
[1765380734646,0.2237289,92007.0,92006.0,0.00016294]
[1765380734846,0.7300889,92007.0,92006.0,0.00016294]
[1765380735245,1.4516889,92007.0,92006.0,0.00016294]
[1765380736855,1.4526889,92007.0,92006.0,0.00016294]
[1765380737345,1.4546889,92007.0,92006.0,0.00016294]
[1765380743962,1.4546889,92007.0,91994.0,0.0108704]
[1765380743963,0.2237308,91991.0,91990.0,0.00108708]
[1765380744164,0.2237323,91978.0,91977.0,9.377e-05]
[1765380744459,0.7301723,91978.0,91977.0,9.377e-05]
[1765380745260,1.0909723,91978.0,91977.0,0.20616377]
[1765380745455,0.3608,91978.0,91977.0,0.20616377]
[1765380745668,0.22389433,91987.0,91986.0,0.20607]
[1765380745872,1.09113433,91987.0,91986.0,0.20607]
[1765380746272,0.98178433,91987.0,91986.0,0.2169414]
[1765380746474,1.09113433,91987.0,91986.0,0.20607]
[1765380746864,1.09113433,91987.0,91986.0,0.20907]
[1765380747263,1.09113433,91987.0,91986.0,0.10811]
[1765380747672,1.09113433,91987.0,91986.0,0.11011]
[1765380747869,1.09113433,91987.0,91986.0,0.005]
[1765380748963,1.45193433,91987.0,91986.0,1e-07]
[1765380749167,1.45193433,91987.0,91977.0,9.377e-05]
[1765380749168,0.2166623,91978.0,91977.0,9.377e-05]
[1765380749374,1.0839823,91978.0,91977.0,9.377e-05]
[1765380749767,1.0839823,91978.0,91977.0,0.20330377]
[1765380750168,1.0839823,91978.0,91977.0,9.377e-05]
[1765380750365,1.0839823,91978.0,91977.0,0.00809377]
[1765380751869,1.0839823,91978.0,91977.0,0.11223377]
[1765380752065,1.0839823,91978.0,91977.0,0.00809377]
[1765380752973,1.0839823,91978.0,91977.0,0.22217627]
[1765380753273,0.5774623,91978.0,91977.0,0.2537483]
[1765380753471,1.0840223,91978.0,91977.0,0.2428758]
[1765380754073,0.4676,91978.0,91977.0,0.2428758]
[1765380754379,0.97416,91978.0,91977.0,0.2428758]
[1765380754679,0.3608,91978.0,91977.0,0.2428758]
[1765380754879,0.1176718,91983.0,91982.0,0.20321]
[1765380755079,0.7232218,91983.0,91982.0,0.23478203]
[1765380755380,0.7232218,91983.0,91982.0,0.03157203]
[1765380755881,0.7232218,91983.0,91982.0,0.23478203]
[1765380756077,0.7232218,91983.0,91982.0,0.23878203]
[1765380756679,0.7232218,91983.0,91982.0,0.03557203]
[1765380758677,0.5584,91986.0,91985.0,0.20321]
[1765380758879,1.06496,91986.0,91985.0,0.23478203]
[1765380759876,1.06496,91986.0,91985.0,0.23578203]
[1765380760276,1.06496,91986.0,91985.0,0.23778203]
[1765380761581,1.06496,91986.0,91985.0,0.20621]
[1765380761782,0.97416,91986.0,91985.0,0.23750366]
[1765380762284,1.07315,91986.0,91985.0,0.23750366]
[1765380763686,0.97416,91986.0,91985.0,0.23750366]
[1765380764383,0.97416,91986.0,91985.0,0.29587665]
[1765380765187,0.00016303,91987.0,91986.0,0.2140814]
[1765380765387,0.00016303,91987.0,91986.0,0.24537506]
[1765380765779,0.20595303,91987.0,91986.0,0.24537506]
[1765380766377,0.20595303,91987.0,91986.0,0.24637506]
[1765380766577,0.20595303,91987.0,91986.0,0.24737506]
[1765380768083,0.20595303,91987.0,91986.0,0.29507191]
[1765380768278,0.20595303,91987.0,91986.0,0.23650366]
[1765380768479,0.20595303,91987.0,91986.0,0.03329366]
[1765380769276,0.20595303,91987.0,91986.0,0.23650366]
[1765380769681,0.20595303,91987.0,91986.0,0.03329366]
[1765380770382,0.20595303,91987.0,91986.0,0.002]
[1765380775197,0.20595303,91987.0,91986.0,0.03260392]
[1765380775682,0.20595303,91987.0,91986.0,0.002]
[1765380776587,0.20595303,91987.0,91968.0,0.03921471]
[1765380776789,0.5774623,91978.0,91968.0,0.00016303]
[1765380776989,1.0840223,91978.0,91968.0,0.00016303]
[1765380777989,1.0840223,91978.0,91977.0,0.00309377]
[1765380778185,1.0840223,91978.0,91977.0,0.00409377]
[1765380778989,1.0840223,91978.0,91977.0,0.00309377]
[1765380779194,1.0840223,91978.0,91977.0,0.00509377]
[1765380780091,0.2105234,91969.0,91968.0,0.00016303]
[1765380780393,0.2105234,91969.0,91965.0,0.00108738]
[1765380780394,0.2105238,91966.0,91965.0,0.00108738]
[1765380780593,0.2105238,91966.0,91941.0,0.05856825]
[1765380780594,0.2105266,91942.0,91941.0,0.13505168]
[1765380780798,0.7170866,91942.0,91941.0,0.12676601]
[1765380781091,0.7170866,91942.0,91941.0,0.03076601]
[1765380781299,1.0778866,91942.0,91941.0,0.03076601]
[1765380781498,0.19965,91941.0,91940.0,0.00108767]
[1765380781889,0.92125,91941.0,91940.0,0.00108767]
[1765380782893,0.92125,91941.0,91940.0,0.24902767]
[1765380782894,0.92225,91941.0,91940.0,0.24902767]
[1765380783193,0.92225,91941.0,91940.0,0.25990447]
[1765380783194,1.32968,91941.0,91940.0,0.25990447]
[1765380783489,0.86848,91941.0,91940.0,0.29059913]
[1765380783898,0.87048,91941.0,91940.0,0.29059913]
[1765380784099,1.07013,91941.0,91940.0,0.29059913]
[1765380784399,0.50968,91941.0,91940.0,0.65139913]
[1765380784596,0.003,91941.0,91940.0,1.08067477]
[1765380784802,0.50216312,91951.0,91950.0,0.2588156]
[1765380784988,0.50216312,91951.0,91950.0,0.28951026]
[1765380785190,0.00016312,91951.0,91950.0,0.28951026]
[1765380786198,0.00116312,91951.0,91950.0,0.68951026]
[1765380786403,0.56045,91971.0,91970.0,0.1987733]
[1765380786596,0.56045,91971.0,91970.0,0.1879]
[1765380787097,0.0108746,91960.0,91959.0,0.0108745]
[1765380787300,0.2105246,91960.0,91959.0,0.03067577]
[1765380787706,0.2105246,91960.0,91959.0,0.12667577]
[1765380787889,0.2105246,91960.0,91959.0,0.096]
[1765380788095,0.2105246,91960.0,91951.0,0.096]
[1765380788096,0.19965,91952.0,91951.0,0.096]
[1765380788401,0.56045,91952.0,91951.0,0.096]
[1765380788699,0.18609,91951.0,91950.0,0.00216312]
[1765380788998,0.18609,91951.0,91950.0,0.00016312]
[1765380790997,0.18909,91951.0,91950.0,0.00016312]
[1765380791212,0.18909,91951.0,91940.0,0.00108767]
[1765380791213,0.1969667,91941.0,91940.0,0.00108767]
[1765380791505,1.0646867,91941.0,91940.0,0.00108767]
[1765380792302,1.0646867,91941.0,91940.0,0.09571767]
[1765380792703,1.0646867,91941.0,91940.0,0.00108767]
[1765380792901,1.0646867,91941.0,91940.0,0.19392767]
[1765380793210,1.05381,91941.0,91940.0,0.19392767]
[1765380793901,0.3618,91941.0,91940.0,0.19392767]
[1765380794206,0.54789,91941.0,91940.0,0.22458079]
[1765380794425,0.54789,91941.0,91940.0,0.19392767]
[1765380794801,0.54789,91941.0,91940.0,0.00108767]
[1765380796410,0.54789,91941.0,91940.0,0.09571767]
[1765380796606,0.54789,91941.0,91940.0,0.00108767]
[1765380797606,0.54789,91941.0,91940.0,0.19392767]
[1765380797805,0.3618,91941.0,91940.0,0.19392767]
[1765380797995,0.3618,91941.0,91940.0,0.22561423]
[1765380798812,0.54789,91941.0,91940.0,0.22561423]
[1765380799105,0.54689,91941.0,91940.0,0.22561423]
[1765380799305,0.45359,91941.0,91940.0,0.22561423]
[1765380799504,0.45359,91941.0,91940.0,0.25482246]
[1765380799704,0.09279,91941.0,91940.0,0.25482246]
[1765380800007,0.0108767,91943.0,91942.0,0.2037165]
[1765380800306,0.1969667,91943.0,91942.0,0.23540306]
[1765380800705,0.1969667,91943.0,91942.0,0.22452656]
[1765380801409,0.1979667,91943.0,91942.0,0.12631656]
[1765380801606,0.1969667,91943.0,91942.0,0.12631656]
[1765380801808,0.09379,91943.0,91942.0,0.22452656]
[1765380802407,0.18709,91943.0,91942.0,0.22452656]
[1765380803212,0.18709,91943.0,91942.0,0.03168656]
[1765380803602,0.18609,91941.0,91940.0,0.00108767]
[1765380803914,0.18609,91941.0,91940.0,0.03282139]
[1765380804607,0.18609,91941.0,91940.0,0.22566139]
[1765380804909,0.18609,91941.0,91940.0,0.12745139]
[1765380805098,0.18609,91941.0,91940.0,0.03282139]
[1765380807613,0.18609,91941.0,91940.0,0.28156139]
[1765380808005,0.18609,91941.0,91940.0,0.03282139]
[1765380809614,0.1928579,91931.0,91929.0,0.02920823]
[1765380809823,0.18198,91927.0,91926.0,0.02920823]
[1765380810122,0.18198,91927.0,91926.0,0.03144891]
[1765380810316,0.18198,91927.0,91926.0,0.21557891]
[1765380811111,0.18198,91927.0,91926.0,0.21857891]
[1765380811318,0.18198,91927.0,91926.0,0.03444891]
[1765380811825,0.18198,91927.0,91926.0,0.03744891]
[1765380812028,0.18198,91927.0,91926.0,0.22157891]
[1765380814720,0.3608,91930.0,91929.0,0.18413]
[1765380814915,0.86788,91930.0,91929.0,0.21557891]
[1765380815116,0.50708,91930.0,91929.0,0.21557891]
[1765380815322,0.50708,91930.0,91929.0,0.25463091]
[1765380815525,0.50708,91930.0,91929.0,0.21557891]
[1765380816316,0.50708,91930.0,91929.0,0.21757891]
[1765380816728,0.50708,91930.0,91929.0,0.21957891]
[1765380818225,0.50708,91930.0,91929.0,0.27814716]
[1765380818523,0.50708,91930.0,91929.0,0.21957891]
[1765380820636,0.010878,91933.0,91932.0,0.0108777]
[1765380820827,0.553658,91933.0,91932.0,0.03144891]
[1765380821519,0.3608,91933.0,91932.0,0.24489871]
[1765380821836,0.1928569,91940.0,91939.0,0.1950067]
[1765380822032,0.1928569,91940.0,91939.0,0.03144891]
[1765380822224,0.1928569,91940.0,91939.0,0.12297891]
[1765380822424,0.1928569,91940.0,91939.0,0.21557891]
[1765380822825,0.8678,91942.0,91941.0,0.18413]
[1765380823028,0.8678,91942.0,91941.0,0.21557891]
[1765380823230,0.00016312,91950.0,91949.0,0.1950058]
[1765380823532,0.00016312,91950.0,91949.0,0.22645471]
[1765380823716,0.00016312,91950.0,91949.0,0.58725471]
[1765380825533,0.00216312,91950.0,91949.0,0.58825471]
[1765380826130,0.00016312,91950.0,91949.0,0.58925471]
[1765380826321,0.00016312,91950.0,91949.0,0.59125471]
[1765380826521,0.50808738,91965.0,91964.0,0.195004]
[1765380826725,0.50808738,91965.0,91964.0,0.22645291]
[1765380827523,0.59809738,91965.0,91964.0,0.22645291]
[1765380827721,0.69006738,91965.0,91964.0,0.03144891]
[1765380827932,1.05086738,91965.0,91964.0,0.03144891]
[1765380828330,0.18198,91958.0,91957.0,0.3716748]
[1765380828529,0.18198,91958.0,91957.0,0.40218308]
[1765380828727,0.18198,91958.0,91957.0,0.58631308]
[1765380828925,0.09001,91964.0,91963.0,0.010874]
[1765380829135,0.50908738,91965.0,91964.0,0.18413]
[1765380829442,0.50808738,91965.0,91964.0,0.21463562]
[1765380830737,0.50908738,91965.0,91964.0,0.21463562]
[1765380832536,0.59909738,91965.0,91964.0,0.21463562]
[1765380833036,0.59809738,91965.0,91964.0,0.21463562]
[1765380833541,0.59809738,91965.0,91964.0,0.21563562]
[1765380833737,0.70094128,91965.0,91964.0,0.03150562]
[1765380833937,0.70094128,91965.0,91947.0,0.0108759]
[1765380833938,0.1928549,91956.0,91947.0,0.0108759]
[1765380834139,0.1928549,91956.0,91936.0,0.03900159]
[1765380834140,0.5536549,91956.0,91943.0,0.0108764]
[1765380834444,0.5536549,91956.0,91939.0,0.02925119]
[1765380834740,0.5536549,91956.0,91943.0,0.0108764]
[1765380834942,0.5536549,91956.0,91939.0,0.02925119]
[1765380835337,0.5566549,91956.0,91942.0,0.0108766]
[1765380835734,0.5566549,91956.0,91944.0,0.0108763]
[1765380835929,0.5566549,91956.0,91935.0,0.41743]
[1765380835930,0.1958549,91956.0,91955.0,0.09169312]
[1765380836134,0.1988549,91956.0,91955.0,0.18429312]
[1765380836732,0.1988549,91956.0,91955.0,0.09169312]
[1765380837144,0.1988549,91956.0,91955.0,0.18429312]
[1765380837540,0.1988549,91956.0,91955.0,0.00016312]
[1765380838245,0.1948549,91956.0,91955.0,2e-08]
[1765380838541,0.1968549,91956.0,91955.0,2e-08]
[1765380838742,0.1900277,91933.0,91932.0,0.02925119]
[1765380838946,0.1900277,91933.0,91928.0,0.03900159]
[1765380838947,0.1900281,91931.0,91930.0,0.181698]
[1765380839239,0.17915,91931.0,91930.0,0.181698]
[1765380839454,0.0108776,91934.0,91933.0,0.1816977]
[1765380839842,0.5179969,91940.0,91939.0,0.17082]
[1765380840030,0.6099069,91940.0,91939.0,0.17082]
[1765380840232,0.6971469,91940.0,91939.0,0.17082]
[1765380840843,0.50712,91940.0,91939.0,0.17082]
[1765380841047,0.50712,91940.0,91937.0,0.0108772]
[1765380841048,0.00016312,91943.0,91942.0,0.17082]
[1765380841238,0.00016312,91943.0,91942.0,0.53162]
[1765380841546,0.00016312,91943.0,91942.0,0.56087119]
[1765380841844,0.00016312,91943.0,91942.0,0.53162]
[1765380842242,3.12e-06,91943.0,91942.0,0.53162]
[1765380842445,0.3608,91959.0,91958.0,0.1816947]
[1765380842642,0.00108738,91965.0,91964.0,0.181694]
[1765380842845,0.09299738,91965.0,91964.0,0.181694]
[1765380843147,0.22202887,91980.0,91979.0,0.17082]
[1765380843346,0.41313695,91990.0,91989.0,0.17082]
[1765380843541,0.19110808,91990.0,91989.0,0.17082]
[1765380843749,0.18023708,91990.0,91989.0,0.17082]
[1765380844147,0.09299708,91990.0,91989.0,0.17082]
[1765380844947,0.09399708,91990.0,91989.0,0.17082]
[1765380845150,0.18123708,91990.0,91989.0,0.17082]
[1765380845345,0.1900215,91985.0,91984.0,0.08298]
[1765380845650,0.1900215,91985.0,91984.0,0.17082]
[1765380846966,0.001,91985.0,91984.0,0.17082]
[1765380847149,0.001,91985.0,91984.0,0.20036707]
[1765380848352,0.00208708,91990.0,91989.0,0.181691]
[1765380848558,0.00108708,91990.0,91989.0,0.21121219]
[1765380850748,0.00208708,91990.0,91989.0,0.21121219]
[1765380851254,0.00108708,91990.0,91989.0,0.21121219]
[1765380851564,0.16901708,91990.0,91989.0,0.11250119]
[1765380851853,0.1768025,91977.0,91976.0,0.11421979]
[1765380852047,0.1768025,91977.0,91970.0,0.00016312]
[1765380852048,0.1768032,91971.0,91970.0,0.00016312]
[1765380852248,0.5376032,91971.0,91970.0,0.00016312]
[1765380852555,0.5376032,91971.0,91953.0,0.0108753]
[1765380852556,0.16593,91955.0,91954.0,0.1726]
[1765380852754,0.0847,91963.0,91962.0,0.1726]
[1765380852951,0.0847,91963.0,91960.0,0.04889]
[1765380852952,0.0108737,91967.0,91966.0,0.1726]
[1765380853146,0.0955737,91967.0,91966.0,0.1726]
[1765380853347,0.16593,91967.0,91966.0,0.1726]
[1765380853549,0.3736732,91971.0,91970.0,0.1726]
[1765380853765,0.4583732,91971.0,91970.0,0.1726]
[1765380853947,0.5396032,91971.0,91970.0,0.1726]
[1765380855260,0.5376032,91971.0,91970.0,0.1726]
[1765380855465,0.5396032,91971.0,91970.0,0.1726]
[1765380855948,0.5376032,91971.0,91970.0,0.1726]
[1765380856147,0.5406032,91971.0,91970.0,0.1726]
[1765380856854,0.5396032,91971.0,91970.0,0.1726]
[1765380857061,0.16593,91961.0,91960.0,0.2323645]
[1765380857246,0.39883227,91970.0,91969.0,0.1834734]
[1765380857554,0.1768034,91970.0,91969.0,0.1834734]
[1765380858060,0.1768036,91967.0,91966.0,0.0959537]
[1765380858253,0.1768036,91967.0,91966.0,0.1834737]
[1765380858759,0.1768043,91961.0,91960.0,0.001]
[1765380859353,0.0108749,91956.0,91955.0,0.183475]
[1765380859554,0.1768049,91956.0,91955.0,0.02949391]
[1765380859758,0.1768049,91956.0,91955.0,0.04036901]
[1765380860266,0.6840049,91956.0,91955.0,0.02949391]
[1765380860447,0.6840049,91956.0,91935.0,0.3608]
[1765380860448,0.0847,91941.0,91940.0,0.17368767]
[1765380860647,0.0108765,91944.0,91943.0,0.1834765]
[1765380860859,0.0955765,91944.0,91943.0,0.21298602]
[1765380861163,0.0847,91944.0,91943.0,0.21298602]
[1765380861347,0.0108762,91946.0,91945.0,0.1726]
[1765380861557,0.0955762,91946.0,91945.0,0.1726]
[1765380862068,0.1768062,91946.0,91945.0,0.1726]
[1765380862864,0.1778062,91946.0,91945.0,0.1726]
[1765380863061,0.16593,91941.0,91940.0,0.00108767]
[1765380863253,0.16593,91923.0,91922.0,0.1726]
[1765380863560,0.16593,91923.0,91922.0,0.20209664]
[1765380863761,0.0847,91923.0,91922.0,0.20209664]
[1765380864062,0.0955786,91925.0,91924.0,0.1726]
[1765380864862,0.1768086,91925.0,91924.0,0.1726]
[1765380865454,0.0108782,91929.0,91928.0,0.1726]
[1765380866053,0.3608,91930.0,91928.0,0.1834782]
[1765380866256,0.3608,91930.0,91929.0,0.1726]
[1765380866457,0.4455,91930.0,91929.0,0.1726]
[1765380866856,0.52673,91930.0,91929.0,0.1726]
[1765380867049,0.1768081,91929.0,91928.0,0.002]
[1765380867464,0.1768086,91925.0,91924.0,0.003]
[1765380867760,0.0108781,91929.0,91917.0,0.00021759]
[1765380867761,0.1768094,91918.0,91917.0,0.00021759]
[1765380867957,0.1789219,91897.0,91894.0,0.0108822]
[1765380868164,0.1789219,91897.0,91896.0,0.16653]
[1765380868961,0.17899949,91897.0,91896.0,0.16653]
[1765380870158,0.17999949,91897.0,91896.0,0.18053]
[1765380870563,0.17999949,91897.0,91896.0,0.025]
[1765380870564,0.26605162,91897.0,91896.0,0.025]
[1765380870751,0.1789242,91878.0,91877.0,0.08138]
[1765380871060,0.16804,91866.0,91853.0,0.03895526]
[1765380871263,0.16804,91866.0,91852.0,0.02916234]
[1765380871264,0.6756762,91866.0,91849.0,0.0108875]
[1765380871562,0.6756762,91866.0,91865.0,0.00016136]
[1765380871754,0.0831,91848.0,91842.0,0.00012591]
[1765380871955,0.16804,91843.0,91842.0,0.00012591]
[1765380872556,0.16804,91830.0,91828.0,0.04962]
[1765380872751,0.0108891,91837.0,91827.0,0.0108901]
[1765380872959,0.0108892,91836.0,91821.0,0.0108909]
[1765380873155,0.08494,91820.0,91819.0,0.04962]
[1765380873358,0.16804,91820.0,91819.0,0.131]
[1765380873562,0.16812214,91820.0,91819.0,0.21615]
[1765380873963,8.214e-05,91820.0,91819.0,0.21615]
[1765380874154,8.214e-05,91820.0,91816.0,0.0108915]
[1765380874362,8.214e-05,91820.0,91815.0,0.00108915]
[1765380874363,0.16804,91816.0,91815.0,0.00108915]
[1765380874575,0.45012,91816.0,91815.0,0.00108915]
[1765380875065,0.45021651,91816.0,91815.0,0.00108915]
[1765380875275,9.651e-05,91816.0,91815.0,0.16761915]
[1765380875770,0.16813651,91816.0,91815.0,0.16761915]
[1765380876258,0.17902801,91816.0,91815.0,0.00108915]
[1765380876465,0.16813651,91816.0,91815.0,0.00108915]
[1765380876660,0.17213651,91816.0,91815.0,0.00108915]
[1765380876974,0.17613651,91816.0,91815.0,0.00208915]
[1765380877270,0.17213651,91816.0,91815.0,0.00208915]
[1765380877466,0.18213651,91816.0,91815.0,0.00308915]
[1765380877857,0.00709651,91816.0,91815.0,0.16861915]
[1765380878054,0.00709651,91816.0,91815.0,0.16961915]
[1765380878055,0.01709651,91816.0,91815.0,0.16961915]
[1765380879671,0.01409651,91816.0,91815.0,0.16961915]
[1765380879969,0.00409651,91816.0,91815.0,0.16861915]
[1765380880170,0.01009651,91816.0,91815.0,0.16961915]
[1765380880364,0.00609651,91816.0,91815.0,0.16861915]
[1765380880569,0.00209651,91816.0,91815.0,0.16761915]
[1765380880973,0.29066747,91840.0,91815.0,0.00208915]
[1765380881165,0.00016332,91841.0,91833.0,0.0108895]
[1765380881362,0.3608,91839.0,91838.0,0.16653]
[1765380881968,0.44585573,91839.0,91838.0,0.16653]
[1765380882568,0.08494,91833.0,91832.0,0.04962]
[1765380882767,0.0108889,91838.0,91837.0,0.08138]
[1765380882967,0.36791573,91839.0,91838.0,0.16653]
[1765380883169,0.53595573,91839.0,91838.0,0.08138]
[1765380883367,0.54684453,91839.0,91832.0,0.0605096]
[1765380883562,0.54684453,91839.0,91828.0,0.0108901]
[1765380883563,0.16804,91833.0,91828.0,0.0108901]
[1765380883765,0.17004,91833.0,91823.0,0.3608]
[1765380883963,0.002,91833.0,91832.0,0.16653]
[1765380884165,0.17004,91833.0,91832.0,0.21615]
[1765380884491,0.16804,91832.0,91831.0,0.0108897]
[1765380884768,0.37091573,91839.0,91832.0,0.04962]
[1765380885078,0.16804,91827.0,91826.0,0.0108902]
[1765380885368,0.16811915,91827.0,91826.0,0.0108902]
[1765380885875,0.16811915,91827.0,91826.0,0.0922702]
[1765380886167,0.17111915,91827.0,91826.0,0.0922702]
[1765380886373,0.08801915,91827.0,91826.0,0.1774202]
[1765380886774,0.17211915,91827.0,91826.0,0.1774202]
[1765380886963,0.17411915,91827.0,91826.0,0.1774202]
[1765380887157,0.18500935,91827.0,91826.0,0.1774202]
[1765380887363,0.27293974,91827.0,91826.0,0.1774202]
[1765380887775,0.1789306,91824.0,91823.0,0.3608]
[1765380888076,0.1789306,91824.0,91821.0,0.0108908]
[1765380888077,0.16804,91822.0,91821.0,0.1774208]
[1765380888868,0.08494,91822.0,91821.0,0.1774208]
[1765380889068,0.0988306,91824.0,91823.0,0.16653]
[1765380889269,0.1819306,91824.0,91823.0,0.16653]
[1765380889565,0.1789306,91824.0,91823.0,0.16653]
[1765380889864,0.17104,91822.0,91821.0,0.1774208]
[1765380890674,0.08794,91822.0,91821.0,0.1774208]
[1765380890875,0.17104,91822.0,91821.0,0.0108908]
[1765380891074,0.17104,91822.0,91815.0,0.00108915]
[1765380891075,0.0108913,91819.0,91817.0,0.0108913]
[1765380891271,0.0108913,91819.0,91815.0,0.00108915]
[1765380891272,0.16804,91816.0,91815.0,0.00108915]
[1765380891476,0.16812726,91816.0,91815.0,0.00108915]
[1765380892477,0.88972726,91816.0,91815.0,0.00108915]
[1765380892678,0.89072726,91816.0,91815.0,0.00108915]
[1765380893078,0.89072726,91816.0,91815.0,0.00208915]
[1765380893278,0.89072726,91816.0,91800.0,0.05]
[1765380893279,0.16804,91801.0,91800.0,0.05]
[1765380893478,0.16804,91801.0,91800.0,0.181]
[1765380893479,0.52884,91801.0,91800.0,0.181]
[1765380893670,0.52896494,91801.0,91800.0,0.181]
[1765380893975,0.52896494,91801.0,91800.0,0.26615]
[1765380893976,0.36092494,91801.0,91800.0,0.26615]
[1765380894380,0.36392494,91801.0,91800.0,0.26715]
[1765380894586,0.44886494,91801.0,91800.0,0.26715]
[1765380894776,0.45486494,91801.0,91800.0,0.26815]
[1765380894968,0.53796494,91801.0,91800.0,0.26815]
[1765380895371,0.17716494,91801.0,91800.0,0.183]
[1765380895672,0.00912494,91801.0,91800.0,0.62895]
[1765380895874,0.00312494,91801.0,91800.0,0.62795]
[1765380896181,0.00912494,91801.0,91800.0,0.62795]
[1765380896771,0.00512494,91801.0,91800.0,0.62695]
[1765380897078,0.00612494,91801.0,91800.0,0.62695]
[1765380897477,0.00112494,91801.0,91800.0,0.62695]
[1765380897778,0.00612494,91801.0,91800.0,0.62695]
[1765380898177,0.00312494,91801.0,91800.0,0.62695]
[1765380900585,0.02841887,91801.0,91800.0,0.62695]
[1765380900769,0.02541887,91801.0,91800.0,0.62695]
[1765380900969,0.27994199,91810.0,91800.0,0.62695]
[1765380900970,0.00016332,91810.0,91809.0,0.1731623]
[1765380901173,3.32e-06,91810.0,91809.0,0.5339623]
[1765380902082,0.1690233,91801.0,91800.0,0.4108]
[1765380902383,0.1690233,91801.0,91800.0,0.05016155]
[1765380902685,0.5308233,91801.0,91800.0,0.05016155]
[1765380903076,0.58931573,91801.0,91800.0,0.05016155]
[1765380903270,0.5298233,91801.0,91800.0,0.05016155]
[1765380903478,0.59231573,91801.0,91800.0,0.05116155]
[1765380904079,0.58831573,91801.0,91800.0,0.05016155]
[1765380904387,0.67926035,91801.0,91800.0,0.05216155]
[1765380904587,0.62076792,91801.0,91800.0,0.05216155]
[1765380904778,0.62076792,91801.0,91800.0,0.05116155]
[1765380905090,0.62576792,91801.0,91800.0,0.21343155]
[1765380905382,0.68428459,91801.0,91800.0,0.21343155]
[1765380905588,0.59733997,91801.0,91800.0,0.21343155]
[1765380905978,0.58644667,91801.0,91800.0,0.21343155]
[1765380906172,0.08563,91801.0,91800.0,0.21343155]
[1765380906571,0.009,91801.0,91800.0,0.21343155]
[1765380907078,0.008,91801.0,91800.0,0.21343155]
[1765380907378,0.16513,91801.0,91800.0,0.21343155]
[1765380907587,0.16513,91801.0,91800.0,0.05116155]
[1765380907780,0.13914667,91801.0,91800.0,0.21243155]
[1765380907981,0.22164667,91801.0,91800.0,0.21243155]
[1765380908180,0.22164667,91801.0,91800.0,0.13004155]
[1765380908793,0.16313,91801.0,91800.0,0.05016155]
[1765380909094,0.1690245,91791.0,91775.0,0.0108964]
[1765380909387,0.5298245,91791.0,91777.0,0.0108961]
[1765380909976,0.15813,91771.0,91770.0,0.3608]
[1765380910176,0.1690273,91767.0,91765.0,0.01198725]
[1765380910388,0.3608,91771.0,91770.0,0.08239]
[1765380910686,0.5088,91774.0,91773.0,0.2225366]
[1765380910888,0.58543,91774.0,91773.0,0.2225366]
[1765380911095,0.66693,91774.0,91773.0,0.2225366]
[1765380911785,0.5088,91774.0,91773.0,0.2225366]
[1765380911986,0.5098,91774.0,91773.0,0.2295366]
[1765380912292,0.67522,91774.0,91773.0,0.0178966]
[1765380912686,0.5108,91774.0,91773.0,0.6023866]
[1765380912883,0.5358349,91774.0,91773.0,0.6023866]
[1765380913088,0.0270349,91774.0,91773.0,0.6023866]
[1765380913995,0.002,91774.0,91773.0,0.6023866]
[1765380914508,0.00016342,91780.0,91779.0,0.1810359]
[1765380914509,3.42e-06,91780.0,91779.0,0.1810359]
[1765380914695,0.3608,91799.0,91798.0,0.1810337]
[1765380914893,0.02503675,91799.0,91798.0,0.1810337]
[1765380915399,0.02503675,91799.0,91798.0,0.5418337]
[1765380915597,0.11992245,91814.0,91813.0,0.0967019]
[1765380915797,0.15675084,91814.0,91813.0,0.1810319]
[1765380916094,0.07548084,91814.0,91813.0,0.1810319]
[1765380916400,0.02487796,91814.0,91813.0,0.1810319]
[1765380916792,0.03087796,91814.0,91813.0,0.1820319]
[1765380919600,0.02587796,91814.0,91813.0,0.1810319]
[1765380920002,0.03187796,91814.0,91813.0,0.1820319]
[1765380920396,3.42e-06,91823.0,91822.0,0.1810308]
[1765380920598,0.08127,91845.0,91844.0,0.17014]
[1765380920790,0.16542,91845.0,91844.0,0.08581]
[1765380920990,0.0921572,91853.0,91852.0,0.17014]
[1765380921188,0.05849418,91856.0,91850.0,0.3608]
[1765380921492,0.08506006,91860.0,91859.0,0.17014]
[1765380921697,0.00016332,91862.0,91860.0,0.21869]
[1765380923000,0.00016332,91862.0,91861.0,0.17014]
[1765380923206,0.00016332,91862.0,91840.0,0.27977867]
[1765380923207,0.1763081,91845.0,91844.0,0.00116332]
[1765380923401,0.08127,91825.0,91824.0,0.0594405]
[1765380923700,0.0108897,91832.0,91824.0,0.21869]
[1765380923900,0.56719287,91848.0,91824.0,0.21869]
[1765380923901,0.27977867,91834.0,91831.0,0.17014]
[1765380924203,0.27977867,91834.0,91824.0,0.04855]